{"text_format":"3","workbook":"xlsx","n_sheets":2,"sheets":["Meny","Spredeareal"],"not_rendered":{"external_links":2,"defined_names":14},"read":"whole","date_system":"1900"}

{"sheet":"Meny","index":0,"n_rows":30,"n_cols":9,"rows_kept":30,"merged":[[2,2,2,10],[3,3,3,9],[4,4,4,9],[5,4,5,9],[6,4,6,6],[7,4,7,9]]}
[]
[]
[null,null,"Om fosforkalkulatoren og instrukser for bruk"]
[{"$nulls":3},"Kalkulatoren kan benyttes til å få oversikt over status for mengde husdyrgjødsel (kg P) på et foretak\nbasert på forslaget til ny forskrift om lagring og bruk av gjødsel. "]
[{"$nulls":4},"-Mengde fosfor beregnes ut fra normtall for ulike dyreslag som en finner i vedlegg 1 til forskriften.\n-Ved registrering av antall dyr av ulike slag kan det tas utgangspunkt i antallet på søknad om produksjonstilskudd.\n-Avviker faktisk dyretall på foretaket fra registreringer i søknaden om produksjonstilskudd, bør faktiske tall brukes. "]
[{"$nulls":4},"Kalkulatoren er ment å gi veiledende informasjon. Det tas forbehold om at det:\n    - kan bli endringer når endelig forskrift blir fastsatt.\n    - er dyrehold og driftsmåter som ikke blir riktig fanget opp (f.eks. smågrisproduksjon med stor andel engangspurker).  "]
[{"$nulls":4},"VIKTIG! Start med å velge \"Region\" og \"Periode\" i skjemaet. Da blir rett faktor for P/daa hentet frem.",{"$nulls":3},"Lenke til kalkulatoren"]
[{"$nulls":4},"Alle hvite felt i kalkulatoren er åpne for å legge inn informasjon. Farga felt er låst."]
[{"$nulls":3},"Arealopplysninger: Alt disponibelt innmarksareal (i søknad om produksjonstilskudd) legges inn, også innmarksbeite i AR5"]
[{"$nulls":4},"-Egen jord","hentes fra søknad om produksjonstilskudd"]
[{"$nulls":4},"-Leid jord","hentes fra søknad om produksjonstilskudd"]
[]
[{"$nulls":4},"Merk: Godkjent spredeareal på innmarksbeite omregnes til fulldyrka \"verdi\" i kalkulatoren."]
[{"$nulls":4},"Faktoren for utregning er avhengig av \"Region\" og \"Periode\""]
[{"$nulls":3},"Dyretall  fra "]
[{"$nulls":4},"- Søknad om produksjonstilskudd (for enkeltbønder)"]
[{"$nulls":4},"- Statistikk for dyretall i kommune eller region"]
[{"$nulls":4},"- Leverandsedatabasen"]
[{"$nulls":4},"Noen av faktorene for P er avhengig av avdrått, uker og vekt på dyrene. Her må tall legges inn før faktoren kommer frem"]
[{"$nulls":4},"Griser"]
[{"$nulls":4},"Avlspurker i purkering (kode 155) kan være avlspurker i ordinær besetning eller avlspurker i purkering (NAV/satelitt): "]
[{"$nulls":4},"-Avslpurker i NAV: bruk antall purker i purkeringen."]
[{"$nulls":4},"-Avslpurker i satelitt: beregning bygger på antall kull (innsett) pr. dyreplass pr år og antall dyreplasser."]
[{"$nulls":4},"Opplysninger om solgte ungpurker, råner og engangspurker på årsbasis hentes ut fra leveransedatabasen"]
[{"$nulls":4},"Påse at slakta utrangerte purker ikke blir tatt med på slakta gris"]
[{"$nulls":3},"Beiting utenom godkjent spredeareal"]
[{"$nulls":4},"Beitelogg kan være bra dokumentasjon for å få dette fratrekket."]
[]
[{"$nulls":4},"Merk: mottak/utlevering av fjørfegjødsel er foreløpig ikke tatt med i kalkulatoren"]
[{"$nulls":4},"Kalkulatoren er laget av Landbruksdirektoratet i samarbeid med Statsforvalteren i Rogaland. "]

{"sheet":"Spredeareal","index":1,"n_rows":43,"n_cols":36,"rows_kept":43,"merged":[[2,8,2,13],[2,15,2,16],[3,3,3,11],[4,13,4,16],[5,5,5,7],[6,3,10,3],[6,4,8,4],[7,5,7,7],[9,5,9,7],[10,5,10,7],[11,3,13,3],[11,5,11,7],[12,5,12,7],[13,5,13,7],[14,3,15,3],[14,5,14,7],[15,5,15,7],[15,32,15,36],[16,3,18,3],[16,5,16,7],[17,5,17,7],[19,3,26,3],[19,5,19,7],[20,5,20,7],[22,5,22,7],[22,13,23,13],[22,14,23,14],[22,15,23,15],[22,16,23,16],[22,18,23,18],[22,33,22,35],[25,4,26,4],[25,5,25,7],[27,3,39,3],[27,5,27,7],[27,13,28,19],[28,5,28,7],[29,5,29,7],[29,13,30,17],[29,18,30,18],[29,19,30,19],[30,5,30,7],[31,5,31,7],[31,13,32,17],[31,18,32,18],[31,19,32,19],[32,5,32,7],[32,33,32,35],[33,4,36,4],[33,13,34,17],[33,18,34,18],[33,19,34,19],[33,33,33,34],[34,33,34,34],[35,18,36,18],[35,19,36,19],[35,33,35,34],[36,33,36,34],[37,13,38,17],[37,18,38,18],[37,19,38,19],[37,33,37,34],[38,5,38,7],[38,33,38,34],[39,5,39,7],[39,33,39,34],[40,3,40,9],[40,10,40,11],[40,33,40,34]]}
[{"$nulls":18},"Hvis ikke region og periode velges ligger dagens krav på 3,5 kg P pr daa til grunn (men med nye faktorer)."]
[]
[{"$nulls":7},"Region :",{"$nulls":6},"Periode :"]
[{"$nulls":3},{"$f":"IF(I3=P3,\"\",CONCATENATE(\"Mengde fosfor i oppgitt region for perioden \",P3,\" er \",AJ41,\" kg pr. daa.\"))","v":""}]
[{"$nulls":10},"Innmarksbeiter godkjent spredeareal omregnes til fulldyrka jord med faktoren",{"$f":"2/AJ41","v":{"v":0.5714285714285714,"d":"0.57"}},null,"Beite utenom godkjent spredeareal"]
[{"$nulls":3},"Dyr","Kode","Dyreslag",null,null,"Faktor","1. okt","1. mars","Sum P",null,"Ant. dyr","Uker","Timer","Sum P"]
[{"$nulls":3},"Storfe",120,"Melkekyr: avdrått under 7 tonn=>",null,null,{"$f":"IF(H7=\"\",0,((H7/7.7)^(2/3))*I8)","v":{"v":0,"d":"0.00"}},null,null,{"$f":"IF(H7=\"\",0,(K7+J7)/2*I7)","v":0},{"$nulls":4},{"$f":"(N7*O7*I7)*P7/(52*24)","v":{"v":0,"d":"0.0"}}]
[{"$nulls":5},"Melkekyr: avdrått  7 –  9,5 tonn",null,null,{"v":15,"d":"15.00"},null,null,{"$f":"(K8+J8)/2*I8","v":0},{"$nulls":4},{"$f":"(N8*O8*I8)*P8/(52*24)","v":{"v":0,"d":"0.0"}}]
[{"$nulls":5},"Melkekyr: avdrått over 9,5 tonn=>",null,null,{"$f":"IF(H9=\"\",0,((H9/7.7)^(2/3))*I8)","v":{"v":0,"d":"0.00"}},null,null,{"$f":"IF(H9=\"\",0,(K9+J9)/2*I9)","v":0},{"$nulls":4},{"$f":"(N9*O9*I9)*P9/(52*24)","v":{"v":0,"d":"0.0"}}]
[{"$nulls":4},121,"Ammekyr, kalvet de siste 15 måneder",null,null,{"v":8,"d":"8.00"},null,null,{"$f":"(K10+J10)/2*I10","v":0},{"$nulls":4},{"$f":"(N10*O10*I10)/52","v":{"v":0,"d":"0.0"}}]
[{"$nulls":4},119,"Ungdyr, slaktevekt 320 kg v/ 18 mnd",null,null,{"v":5,"d":"5.00"},null,null,{"$f":"(K11+J11)/2*I11","v":0},{"$nulls":4},{"v":0,"d":"0.0"}]
[{"$nulls":3},"Sauer",145,"Søyer, født i fjor eller tidligere",null,null,{"v":2,"d":"2.00"},null,null,{"$f":"K12*I12","v":0},{"$nulls":4},{"v":0,"d":"0.0"}]
[{"$nulls":4},146,"Værer, født i fjor eller tidligere ",null,null,{"v":2,"d":"2.00"},null,null,{"$f":"K13*I13","v":0},{"$nulls":4},{"v":0,"d":"0.0"}]
[{"$nulls":4},139,"Melkesau, født i fjor eller tidligere ",null,null,{"v":2,"d":"2.00"},null,null,0,{"$nulls":4},{"v":0,"d":"0.0"}]
[{"$nulls":3},"Geit",140,"Melkegeiter ",null,null,{"v":2,"d":"2.00"},null,null,{"$f":"(K15+J15)/2*I15","v":0},{"$nulls":4},{"v":0,"d":"0.0"}]
[{"$nulls":4},142,"Ammegeiter ",null,null,{"v":2,"d":"2.00"},null,null,0,{"$nulls":4},{"v":0,"d":"0.0"},{"$nulls":15},"MÅ ikke endres!"]
[{"$nulls":3},"Hester",115,"Hester, under 3 år (i avl eller ikke)",null,null,{"v":3,"d":"3.00"},null,null,0,{"$nulls":22},"Utvelgelse av periode"]
[{"$nulls":4},116,"Hester, 3 år og eldre  (i avl eller ikke)",null,null,{"v":7.5,"d":"7.50"},null,null,0,{"$nulls":4},{"v":0,"d":"0.0"},{"$nulls":17},"Test region","kg P"]
[{"$nulls":4},193,"Hester i pensjon. Ant. beiteuker :",null,null,{"$f":"IF(H19=\"\",\"\",I18*H19/52)","v":""},null,null,{"$f":"IF(H19=\"\",0,(K19+J19)/2*I19)","v":0},{"$nulls":4},{"$f":"IF(H19=\"\",0,(N19*O19*I19)/52)","v":{"v":0,"d":"0.0"}},{"$nulls":17},{"$f":"IF($I$3=\"\",\"\",IF($I$3=\"Troms og Finnmark\",AI31,IF($I$3=\"Rogaland\",AI28,IF($I$3=\"Alle fylker utenom Rogaland, Troms og Finnmark\",AI25,\"\"))))","v":""},{"$f":"IF($I$3=\"\",\"\",IF($I$3=\"Troms og Finnmark\",AJ31,IF($I$3=\"Rogaland\",AJ28,IF($I$3=\"Alle fylker utenom Rogaland, Troms og Finnmark\",AJ25,\"\"))))","v":""}]
[{"$nulls":3},"Griser",155,"Avlspurker, minst ett kull ",null,null,{"v":6,"d":"6.00"},null,null,0,null,"Sum P ved beite utenom spr.areal",null,null,{"$f":"SUM(Q7:Q19)","v":{"v":0,"d":"0.0"}},{"$nulls":17},{"$f":"IF($I$3=\"\",\"\",IF($I$3=\"Rogaland\",AI29,IF($I$3=\"Alle fylker utenom Rogaland, Troms og Finnmark\",AI26,\"\")))","v":""},{"$f":"IF($I$3=\"\",\"\",IF($I$3=\"Rogaland\",AJ29,IF($I$3=\"Alle fylker utenom Rogaland, Troms og Finnmark\",AJ26,\"\")))","v":""}]
[{"$nulls":4},155,"Purkering: avlspurker i NAV",null,null,{"v":2,"d":"2.00"},null,null,0,{"$nulls":22},{"$f":"IF($I$3=\"\",\"\",IF($I$3=\"Rogaland\",AI30,IF($I$3=\"Alle fylker utenom Rogaland, Troms og Finnmark\",AI27,\"\")))","v":""},{"$f":"IF($I$3=\"\",\"\",IF($I$3=\"Rogaland\",AJ30,IF($I$3=\"Alle fylker utenom Rogaland, Troms og Finnmark\",AJ27,\"\")))","v":""}]
[{"$nulls":4},155,"Purkering: satellitt.  Ant. kull pr år:",null,null,"       1,80   Ant. dyreplasser:",null,null,{"$f":"M22*H22*K22","v":0},1.8,"Godkjent spredeareal"]
[{"$nulls":4},156,"Råner i avl",null,null,{"v":6,"d":"6.00"},null,null,0,null,"Eierforhold","Dyrka jord","Overflate-dyrka","Godkjent beite",null,"Sum daa",{"$nulls":14},"Tabell: endring i arealkrav kg P/daa i perioder"]
[{"$nulls":4},"157, 158, 159  Unggris til avl",{"$nulls":3},{"v":1.6,"d":"1.60"},null,null,0,{"$nulls":21},"Region","Periode","kg P"]
[{"$nulls":4},"Lev.db Solgte ungpurker/råner >50 kg/>15 uker",{"$nulls":3},{"v":1.6,"d":"1.60"},null,null,{"$f":"K25*I25","v":0},null,"Egen jord (PT)",{"$nulls":4},{"$f":"SUM(O25:Q25)","v":0},{"$nulls":14},"Alle fylker utenom Rogaland, Troms og Finnmark","01.01.2025 – 31.12.2028",2.8]
[{"$nulls":4},184,"Slaktegris: vekt < 130 kg",null,null,0.37,null,null,{"$f":"K26*I26","v":0},null,"Leid jord (PT)",{"$nulls":4},{"$f":"SUM(O26:Q26)","v":0},{"$nulls":14},"Alle fylker utenom Rogaland, Troms og Finnmark","01.01.2029 – 31.12.2032",2.5]
[{"$nulls":5},"Slaktegris: vekt > 130 kg",null,null,{"$f":"IF(H27=\"\",0,((H27/115)^(3/2))*I26)","v":{"v":0,"d":"0.00"}},null,null,{"$f":"I27*K27","v":0},null,"Sum",{"$f":"SUM(O25:O26)","v":0},{"$f":"SUM(P25:P26)","v":0},{"$f":"(SUM(Q25:Q26))/AJ41*2","v":0},null,{"$f":"ROUND(SUM(O27:Q27),0)","v":0},{"$nulls":14},"Alle fylker utenom Rogaland, Troms og Finnmark","01.01.2033",2.3]
[{"$nulls":3},"Fjørfe",161,"Verpe- og rugehøner, > 20 uker",null,null,{"v":0.12,"d":"0.120"},null,null,{"$f":"(K28+J28)/2*I28","v":0},null,"Oppsummering",{"$nulls":19},"Rogaland","01.01.2025 – 31.12.2028",3.1]
[{"$nulls":5},"Avlsdyr høner (slaktekyllingmødre)",null,null,{"v":0.25,"d":"0.250"},null,null,{"$f":"(K29+J29)/2*I29","v":0},{"$nulls":21},"Rogaland","01.01.2029 – 31.12.2032",3]
[{"$nulls":4},168,"Avlsdyr gjess ",null,null,{"v":0.25,"d":"0.250"},null,null,{"$f":"(K30+J30)/2*I30","v":0},null,"      Sum P fra husdyrhold (kg)",{"$nulls":4},{"$f":"K41","v":0},"kg P",{"$nulls":13},"Rogaland","01.01.2033",2.7]
[{"$nulls":4},168,"Avlsdyr ender",null,null,{"v":0.25,"d":"0.250"},null,null,0,{"$nulls":21},"Troms og Finnmark","01.01.2025",2.7]
[{"$nulls":4},168,"Avlsdyr kalkun",null,null,{"v":0.25,"d":"0.250"},null,null,0,null,"    - Beite utenom godkjent spredeareal (kg)",{"$nulls":4},{"$f":"Q20","v":0},"kg P"]
[{"$nulls":4},185,"Livkylling, påsatt til verpehøns ",null,null,0.014,null,null,{"$f":"J33*I33","v":0},{"$nulls":21},"Tabell: uthenting av fosfor for å beregne arealbehov"]
[{"$nulls":4},186,"Sl.kylling vokser raskt (levendevekt)",null,"<2,3 kg",{"v":8.6E-3,"d":"0.009"},null,null,{"$f":"J34*I34","v":0},{"$f":"AJ41","v":3.5},"   = Netto fosfor",{"$nulls":4},{"$f":"S30-S32","v":0},"kg P",{"$nulls":13},"Alle fylker utenom Rogaland, Troms og Finnmark 01.01.2025 – 31.12.2028",null,2.8]
[{"$nulls":5},"Sl.kylling vokser raskt: > 2,3 kg",null,null,{"$f":"IF(H35=\"\",0,((H35/2.1)^(3/2))*I34)","v":{"v":0,"d":"0.000"}},null,null,{"$f":"J35*I35","v":0},{"$nulls":21},"Alle fylker utenom Rogaland, Troms og Finnmark 01.01.2029 – 31.12.2032",null,2.5]
[{"$nulls":5},"Sl.kylling vokser sakte",null,"<2,5 kg",{"v":0.0116,"d":"0.012"},null,null,{"$f":"J36*I36","v":0},null,"Tillatt spredt på egne arealer",{"$nulls":4},{"$f":"AJ41*S27","v":0},"kg P",{"$nulls":13},"Alle fylker utenom Rogaland, Troms og Finnmark 01.01.2033",null,2.3]
[{"$nulls":5},"Sl.kylling vokser sakte > 2,5 kg",null,null,{"$f":"IF(H37=\"\",0,((H37/2.3)^(3/2))*I36)","v":{"v":0,"d":"0.000"}},null,null,{"$f":"J37*I37","v":0},null,{"$f":"IF(I3=P3,\"\",CONCATENATE(\" \",S27,\" daa x \",AJ41,\" kg pr. daa\"))","v":""},{"$nulls":19},"Rogaland 01.01.2025 – 31.12.2028",null,3.1]
[{"$nulls":4},188,"Slaktekalkuner: slaktevekt inntil 9 kg",null,null,0.106,null,null,{"$f":"J38*I38","v":0},null,{"$f":"IF(S34-S36=0,\"Beregning\",IF(S34-S36<0,\"Du har nok spredeareal. Du kan motta:\",\"Må bortskaffes (nabosamarb., biogass ol.)\"))","v":"Beregning"},{"$nulls":4},{"$f":"IF(S34-S36<0,S36-S34,S34-S36)","v":0},"kg P",{"$nulls":13},"Rogaland 01.01.2029 – 31.12.2032",null,3]
[{"$nulls":4},187,"Slakteender",null,null,0.025,null,null,0,{"$nulls":21},{"$f":"CONCATENATE(AH30,\" \",AI30)","v":"Rogaland 01.01.2033"},null,2.7]
[{"$nulls":4},189,"Slaktegjess",null,null,0.025,null,null,0,{"$nulls":21},"Troms og Finnmark 01.01.2025",null,2.7]
[{"$nulls":3},"Sum fosfor på gården pr år: ",{"$nulls":6},{"$f":"SUM(L7:L40)","v":0},{"$nulls":22},"Arealbehov ut fra utvelgelse av region og periode",null,{"$f":"IF(I3=\"\",3.5,IF(P3=\"\",3.5,VLOOKUP(CONCATENATE(I3,\" \",P3),AH34:AJ40,3)))","v":3.5}]
[]
[{"$nulls":4},"Merk:","Ei avlspurke i satellitt i en purkering legger igjen ca. 1,8 kg P pr. kull og har ca. 2,2 kull pr år. "]